bitfinex/quotes_SOLUSD_20241111
["timestamp","ask_amount","ask_price","bid_price","bid_amount"]
[1731321041488,0.06687243,213.69,213.67,23.776884]
[1731321041689,0.06687243,213.68,213.67,23.776884]
[1731321041990,44.59347618,213.73,213.67,23.776884]
[1731321042186,0.06687243,213.73,213.71,23.776884]
[1731321042585,0.06687243,213.75,213.69,23.776884]
[1731321042785,0.06687243,213.7,213.68,44.52660375]
[1731321042980,0.06687243,213.67,213.66,44.52660375]
[1731321043182,0.06687243,213.63,213.5,0.1]
[1731321043486,0.06687243,213.63,213.62,44.52660375]
[1731321043690,0.06687243,213.6,213.51,6.17848219]
[1731321043889,0.06687243,213.6,213.48,50.70508594]
[1731321044110,0.06687243,213.6,213.49,6.17848219]
[1731321044406,0.06687243,213.57,213.48,44.52660375]
[1731321044616,0.06687243,213.59,213.48,50.70508594]
[1731321044821,0.06687243,213.59,213.55,44.52660375]
[1731321045405,44.52660375,213.63,213.55,44.52660375]
[1731321045406,0.06687243,213.57,213.55,44.52660375]
[1731321045992,0.06687243,213.61,213.55,44.52660375]
[1731321046195,0.06687243,213.57,213.55,44.52660375]
[1731321046393,0.06687243,213.57,213.56,23.776884]
[1731321047185,0.06687243,213.57,213.51,44.52660375]
[1731321047384,0.06687243,213.57,213.34,23.51325555]
[1731321047385,0.06687243,213.49,213.48,44.52660375]
[1731321047591,0.06687243,213.59,213.48,44.52660375]
[1731321047806,0.06687243,213.59,213.51,44.52660375]
[1731321048015,0.06687243,213.54,213.53,44.52660375]
[1731321048605,0.06687243,213.55,213.54,23.776884]
[1731321048807,0.06687243,213.48,213.44,44.52660375]
[1731321049005,0.06687243,213.49,213.46,44.52660375]
[1731321049208,0.06687243,213.49,213.4,6.17848219]
[1731321049209,0.06687243,213.49,213.47,44.52660375]
[1731321049593,0.06687243,213.53,213.47,44.52660375]
[1731321049789,0.06687243,213.49,213.47,44.52660375]
[1731321050304,0.06687243,213.49,213.46,20.0]
[1731321050495,0.06687243,213.46,213.43,44.52660375]
[1731321051214,0.06687243,213.44,213.41,44.52660375]
[1731321051593,0.06687243,213.4,213.35,44.52660375]
[1731321051992,0.06687243,213.38,213.35,44.52660375]
[1731321052210,0.06687243,213.46,213.37,44.52660375]
[1731321052410,0.06687243,213.46,213.41,44.52660375]
[1731321053208,0.06687243,213.45,213.42,20.0]
[1731321053408,0.06687243,213.42,213.39,44.52660375]
[1731321053617,0.06687243,213.42,213.41,23.776884]
[1731321053795,0.06687243,213.42,213.41,43.776884]
[1731321054007,0.06687243,213.42,213.41,20.0]
[1731321054214,0.06687243,213.42,213.39,44.52660375]
[1731321054514,0.06687243,213.42,213.41,44.52660375]
[1731321054695,0.06687243,213.42,213.4,20.0]
[1731321054895,0.06687243,213.38,213.33,44.52660375]
[1731321055119,0.06687243,213.36,213.33,44.52660375]
[1731321055318,0.06687243,213.34,213.3,44.52660375]
[1731321055813,0.06687243,213.34,213.31,44.52660375]
[1731321056009,0.06687243,213.39,213.33,44.52660375]
[1731321056218,0.06687243,213.39,213.34,44.52660375]
[1731321056397,0.06687243,213.38,213.37,43.776884]
[1731321056815,0.06687243,213.38,213.37,23.776884]
[1731321056997,0.06687243,213.37,213.35,23.776884]
[1731321057501,0.06687243,213.37,213.36,44.52660375]
[1731321057699,0.06687243,213.37,213.36,68.30348775]
[1731321057910,0.06687243,213.37,213.35,23.776884]
[1731321058117,0.06687243,213.38,213.35,23.776884]
[1731321058324,0.06687243,213.36,213.35,23.776884]
[1731321058514,0.06687243,213.36,213.35,64.52660375]
[1731321058700,15.7159,213.47,213.36,20.0]
[1731321058701,44.52660375,213.44,213.36,20.0]
[1731321058906,44.52660375,213.44,213.36,64.52660375]
[1731321059319,44.52660375,213.46,213.38,44.52660375]
[1731321059521,14.89447618,213.47,213.4,44.52660375]
[1731321059818,44.52660375,213.48,213.4,44.52660375]
[1731321060203,44.52660375,213.48,213.41,23.776884]
[1731321060506,44.52660375,213.5,213.43,23.776884]
[1731321060709,44.52660375,213.47,213.43,23.776884]
[1731321061016,44.52660375,213.47,213.41,23.776884]
[1731321062517,15.0525,213.53,213.43,23.776884]
[1731321062518,44.52660375,213.49,213.43,23.776884]
[1731321062818,0.1,213.41,213.19,6.1506]
[1731321063032,44.52660375,213.35,213.27,44.52660375]
[1731321063328,44.52660375,213.35,213.19,6.2506]
[1731321063329,44.52660375,213.39,213.31,44.52660375]
[1731321063701,44.52660375,213.37,213.29,44.52660375]
[1731321064415,44.52660375,213.33,213.25,44.52660375]
[1731321064715,44.52660375,213.31,213.23,44.52660375]
[1731321064913,44.52660375,213.29,213.21,44.52660375]
[1731321065405,49.39466328,213.46,213.28,44.62660375]
[1731321065609,44.52660375,213.48,213.39,44.52660375]
[1731321065815,44.52660375,213.46,213.39,44.52660375]
[1731321066011,44.52660375,213.46,213.38,20.0]
[1731321066328,44.52660375,213.46,213.38,23.776884]
[1731321066798,21.2635,213.5,213.43,44.52660375]
[1731321066996,15.0009,213.5,213.44,23.776884]
[1731321067408,45.34062849,213.54,213.46,23.776884]
[1731321067610,44.52660375,213.54,213.46,23.776884]
[1731321069115,49.20960375,213.54,213.46,23.776884]
[1731321069819,44.52660375,213.52,213.45,44.52660375]
[1731321070025,44.52660375,213.5,213.44,23.776884]
[1731321071128,44.52660375,213.52,213.44,23.776884]
[1731321071501,50.78920375,213.56,213.47,44.52660375]
[1731321071826,44.52660375,213.56,213.5,23.776884]
[1731321072121,44.52660375,213.55,213.47,44.52660375]
[1731321072324,44.52660375,213.53,213.47,23.776884]
[1731321072517,44.52660375,213.53,213.46,20.0]
[1731321072518,44.52660375,213.53,213.46,23.776884]
[1731321072912,44.52660375,213.49,213.41,44.52660375]
[1731321073113,44.52660375,213.45,213.37,44.52660375]
[1731321073314,44.52660375,213.42,213.34,44.52660375]
[1731321073517,44.52660375,213.43,213.35,44.52660375]
[1731321073713,44.52660375,213.43,213.36,44.52660375]
[1731321074529,44.52660375,213.46,213.38,44.52660375]
[1731321075529,44.52660375,213.45,213.38,23.776884]
[1731321075929,44.52660375,213.42,213.34,44.52660375]
[1731321076222,44.52660375,213.39,213.31,44.52660375]
[1731321076425,44.52660375,213.38,213.3,44.52660375]
[1731321076627,44.52660375,213.4,213.32,44.52660375]
[1731321076819,16.1336,213.43,213.35,44.52660375]
[1731321077008,16.1336,213.43,213.37,44.52660375]
[1731321077203,6.2745,213.48,213.42,44.52660375]
[1731321077404,65.05610375,213.51,213.43,44.52660375]
[1731321077625,60.37250375,213.51,213.33,0.1]
[1731321077807,44.52660375,213.48,213.4,44.52660375]
[1731321078008,44.52660375,213.48,213.41,68.30348775]
[1731321078214,44.52660375,213.49,213.43,23.776884]
[1731321078413,15.8459,213.51,213.44,44.52660375]
[1731321078629,44.52660375,213.5,213.44,44.52660375]
[1731321078820,44.52660375,213.5,213.43,68.30348775]
[1731321079127,44.52660375,213.48,213.41,23.776884]
[1731321079321,44.52660375,213.5,213.43,44.52660375]
[1731321079530,49.39208854,213.53,213.46,44.52660375]
[1731321079827,49.20960375,213.54,213.46,44.52660375]
[1731321080029,6.0286,213.55,213.49,44.52660375]
[1731321080326,44.52660375,213.55,213.49,23.776884]
[1731321080527,44.52660375,213.53,213.47,23.776884]
[1731321080713,44.52660375,213.55,213.49,23.776884]
[1731321080907,59.97840375,213.58,213.51,44.52660375]
[1731321081113,44.52660375,213.63,213.56,44.52660375]
[1731321081324,15.8815,213.66,213.49,23.776884]
[1731321081325,15.8815,213.66,213.6,44.52660375]
[1731321081513,0.1,213.74,213.48,64.52660375]
[1731321081514,44.52660375,213.69,213.61,23.776884]
[1731321081721,4.86112461,213.71,213.61,23.776884]
[1731321082018,4.6788,213.73,213.61,23.776884]
[1731321082218,15.8815,213.74,213.61,23.776884]
[1731321082624,44.52660375,213.73,213.66,44.52660375]
[1731321082827,44.52660375,213.71,213.63,68.30348775]
[1731321083021,44.52660375,213.71,213.65,23.776884]
[1731321083228,44.52660375,213.73,213.65,44.52660375]
[1731321083415,44.52660375,213.74,213.66,44.52660375]
[1731321083629,44.52660375,213.74,213.67,23.776884]
[1731321085933,44.52660375,213.78,213.7,64.52660375]
[1731321086530,44.52660375,213.78,213.71,23.776884]
[1731321086735,15.8815,213.82,213.73,23.776884]
[1731321086736,44.52660375,213.8,213.73,23.776884]
[1731321086928,0.1,213.9,213.77,44.52660375]
[1731321087123,0.1,213.9,213.73,23.776884]
[1731321087124,44.52660375,213.9,213.82,44.52660375]
[1731321087327,44.52660375,213.92,213.85,23.776884]
[1731321087542,10.33536005,213.95,213.87,23.776884]
[1731321087543,4.84935451,213.95,213.87,23.776884]
[1731321087738,44.52660375,213.95,213.87,68.30348775]
[1731321088229,44.52660375,213.93,213.85,44.52660375]
[1731321088416,44.52660375,213.89,213.82,23.776884]
[1731321089442,44.52660375,213.91,213.84,43.776884]
[1731321089646,44.52660375,213.93,213.86,43.776884]
[1731321090233,44.52660375,213.98,213.91,44.52660375]
[1731321090433,44.52660375,213.94,213.88,23.776884]
[1731321090642,44.52660375,213.94,213.75,0.1]
[1731321090643,44.52660375,213.9,213.85,23.776884]
[1731321090937,44.52660375,213.92,213.85,23.776884]
[1731321091235,0.81154801,214.01,213.92,20.0]
[1731321091544,44.52660375,214.03,213.95,23.776884]
[1731321092046,44.52660375,214.03,213.97,23.776884]
[1731321092345,5.66472149,214.08,213.97,23.776884]
[1731321092346,44.52660375,214.05,213.97,23.776884]
[1731321092837,44.52660375,214.05,214.0,20.0]
[1731321093036,44.52660375,214.05,214.01,23.776884]
[1731321093246,44.52660375,214.05,213.98,44.52660375]
[1731321093625,44.52660375,214.05,213.99,23.776884]
[1731321094039,7.45866352,214.12,213.99,23.776884]
[1731321094040,0.81136352,214.12,214.04,44.52660375]
[1731321094242,44.52660375,214.19,214.11,44.52660375]
[1731321094451,44.52660375,214.19,214.12,23.776884]
[1731321094636,44.52660375,214.21,214.13,44.52660375]
[1731321094942,44.52660375,214.21,214.14,23.776884]
[1731321095747,49.19490375,214.21,214.14,23.776884]
[1731321095925,44.52660375,214.21,214.14,23.776884]
[1731321096636,49.19450375,214.23,214.15,44.52660375]
[1731321097723,44.52660375,214.21,214.14,23.776884]
[1731321098933,44.52660375,214.15,214.07,44.52660375]
[1731321099133,44.52660375,214.09,214.01,44.52660375]
[1731321099866,44.52660375,214.09,213.99,44.52660375]
[1731321100349,0.2,214.17,213.99,44.52660375]
[1731321100350,44.52660375,214.07,213.99,44.52660375]
[1731321100825,44.52660375,214.07,213.97,44.52660375]
[1731321101030,4.671,214.09,213.97,44.52660375]
[1731321101031,44.52660375,214.05,213.97,44.52660375]
[1731321101241,44.52660375,214.03,213.95,44.52660375]
[1731321101841,44.52660375,214.08,213.99,44.52660375]
[1731321102043,44.52660375,214.1,214.01,44.52660375]
[1731321102257,44.52660375,214.1,213.96,51.01575759]
[1731321102258,44.52660375,214.14,214.05,44.52660375]
[1731321102431,44.52660375,214.17,214.1,23.776884]
[1731321102759,17.43135967,214.27,214.1,23.776884]
[1731321102760,70.0,214.33,214.16,44.52660375]
[1731321102932,70.0,214.33,214.17,23.776884]
[1731321102933,44.52660375,214.25,214.17,23.776884]
[1731321103451,44.52660375,214.23,214.17,23.776884]
[1731321103670,44.52660375,214.25,214.17,23.776884]
[1731321103849,44.52660375,214.28,214.21,23.776884]
[1731321104056,44.52660375,214.28,214.2,44.52660375]
[1731321104347,44.52660375,214.28,214.21,23.776884]
[1731321104735,0.81100552,214.3,214.22,44.52660375]
[1731321104736,45.33760927,214.3,214.22,44.52660375]
[1731321104935,45.33760927,214.3,214.23,23.776884]
[1731321105154,44.52660375,214.3,214.23,23.776884]
[1731321105341,44.52660375,214.32,214.25,23.776884]
[1731321106031,44.52660375,214.3,214.25,23.776884]
[1731321106232,44.52660375,214.28,214.21,23.776884]
[1731321107051,44.52660375,214.26,214.19,23.776884]
[1731321107232,44.52660375,214.24,214.17,23.776884]
[1731321107632,44.52660375,214.26,214.19,23.776884]
[1731321109050,44.52660375,214.28,214.2,44.52660375]
[1731321109257,44.52660375,214.28,214.21,23.776884]
[1731321110245,44.52660375,214.26,214.19,23.776884]
[1731321110936,44.52660375,214.24,214.16,44.52660375]
[1731321111131,44.52660375,214.22,214.13,44.52660375]
[1731321111431,44.52660375,214.24,214.17,44.52660375]
[1731321111840,4.6652,214.35,214.22,44.52660375]
[1731321112048,44.52660375,214.28,214.2,44.52660375]
[1731321112358,44.52660375,214.24,214.17,23.776884]
[1731321112858,44.52660375,214.26,214.18,44.52660375]
[1731321113362,44.52660375,214.26,214.19,23.776884]
[1731321114749,44.52660375,214.24,214.19,23.776884]
[1731321115163,44.52660375,214.24,214.17,23.776884]
[1731321115340,44.52660375,214.22,214.15,23.776884]
[1731321115543,44.52660375,214.2,214.12,44.52660375]
[1731321115840,4.6674,214.26,214.14,44.52660375]
[1731321115841,44.52660375,214.22,214.14,44.52660375]
[1731321116334,44.52660375,214.24,214.16,44.52660375]
[1731321116534,44.52660375,214.28,214.2,44.52660375]
[1731321116759,44.52660375,214.32,214.25,44.52660375]
[1731321116932,44.52660375,214.32,214.23,44.52660375]
[1731321117258,44.52660375,214.32,214.24,23.776884]
[1731321117631,44.52660375,214.34,214.27,44.52660375]
[1731321117954,44.52660375,214.44,214.27,44.52660375]
[1731321117955,44.52660375,214.46,214.33,23.776884]
[1731321118138,44.52660375,214.44,214.37,44.52660375]
[1731321118338,44.52660375,214.44,214.35,44.52660375]
[1731321118548,44.52660375,214.46,214.38,23.776884]
[1731321119063,44.52660375,214.44,214.38,23.776884]
[1731321119244,44.52660375,214.42,214.33,44.52660375]
[1731321119550,10.49493629,214.5,214.41,44.52660375]
[1731321119551,9.58510618,214.5,214.41,44.52660375]
[1731321119735,0.1,214.64,214.49,44.52660375]
[1731321119936,44.52660375,214.55,214.47,44.52660375]
[1731321120137,44.52660375,214.55,214.48,23.776884]
[1731321120557,44.52660375,214.57,214.5,23.776884]
[1731321121168,44.52660375,214.55,214.45,44.52660375]
[1731321121341,4.6607,214.56,214.45,44.52660375]
[1731321121342,44.52660375,214.53,214.52,23.776884]
[1731321121737,44.52660375,214.53,214.45,44.52660375]
[1731321121959,44.52660375,214.53,214.46,23.776884]
[1731321122172,4.6607,214.56,214.43,44.52660375]
[1731321122173,44.52660375,214.51,214.43,44.52660375]
[1731321122456,4.6607,214.56,214.4,23.776884]
[1731321122457,44.52660375,214.49,214.4,23.776884]
[1731321122759,44.52660375,214.49,214.42,23.776884]
[1731321123346,44.52660375,214.51,214.42,29.79715886]
[1731321123550,44.52660375,214.54,214.45,44.52660375]
[1731321123746,4.6607,214.56,214.45,44.52660375]
[1731321123747,44.52660375,214.5,214.46,23.776884]
[1731321124141,44.52660375,214.48,214.46,23.776884]
[1731321125162,44.52660375,214.48,214.41,44.52660375]
[1731321125367,44.52660375,214.48,214.4,23.776884]
[1731321125743,44.52660375,214.46,214.39,44.52660375]
[1731321126063,44.52660375,214.48,214.39,44.52660375]
[1731321126446,44.52660375,214.48,214.41,44.52660375]
[1731321126762,44.52660375,214.49,214.42,5.91930819]
[1731321126953,44.52660375,214.49,214.43,23.776884]
[1731321127765,44.52660375,214.49,214.43,29.69619219]
[1731321127950,44.52660375,214.49,214.42,23.776884]
[1731321128451,44.52660375,214.51,214.44,23.776884]
[1731321128657,44.52660375,214.51,214.44,29.69619219]
[1731321128967,44.52660375,214.51,214.43,50.46812929]
[1731321128968,44.52660375,214.51,214.46,23.776884]
[1731321129754,44.52660375,214.53,214.46,23.776884]
[1731321129954,44.52660375,214.53,214.48,23.776884]
[1731321130149,44.52660375,214.55,214.5,23.776884]
[1731321130353,44.52660375,214.57,214.5,35.63771773]
[1731321130566,49.18690375,214.58,214.52,23.776884]
[1731321130753,44.52660375,214.61,214.54,68.30348775]
[1731321130955,49.18530375,214.65,214.59,23.776884]
[1731321131154,4.6584,214.67,214.61,23.776884]
[1731321131463,4.6584,214.67,214.63,23.776884]
[1731321131763,49.18500375,214.67,214.63,23.776884]
[1731321131958,4.6584,214.67,214.63,23.776884]
[1731321132160,44.52660375,214.66,214.63,23.776884]
[1731321132465,4.6584,214.67,214.61,6.38808514]
[1731321132466,44.52660375,214.68,214.61,30.59830248]
[1731321132651,5.653862,214.73,214.68,0.1]
[1731321132856,44.52660375,214.79,214.71,23.776884]
[1731321133255,44.52660375,214.77,214.71,23.776884]
[1731321133553,44.52660375,214.77,214.7,68.30348775]
[1731321133977,44.52660375,214.77,214.7,75.43393551]
[1731321134148,44.52660375,214.77,214.7,82.84540954]
[1731321134651,44.52660375,214.83,214.77,23.776884]
[1731321135171,44.52660375,214.81,214.72,44.52660375]
[1731321135547,44.52660375,214.81,214.74,44.52660375]
[1731321135769,44.52660375,214.81,214.72,44.52660375]
[1731321135951,49.18190375,214.81,214.72,44.52660375]
[1731321136149,44.52660375,214.79,214.7,44.52660375]
[1731321136457,44.52660375,214.77,214.68,44.52660375]
[1731321137372,41.52660375,214.79,214.7,44.52660375]
[1731321137570,41.52660375,214.79,214.69,7.70719625]
[1731321137571,44.52660375,214.75,214.69,7.60719625]
[1731321137777,44.52660375,214.75,214.61,21.83768314]
[1731321137778,44.52660375,214.7,214.61,68.4946]
[1731321137950,44.52660375,214.7,214.62,7.70719625]
[1731321138471,44.52660375,214.7,214.62,7.60719625]
[1731321138658,44.52660375,214.7,214.62,7.70719625]
[1731321139155,44.52660375,214.7,214.62,7.60719625]
[1731321139356,44.52660375,214.7,214.62,7.70719625]
[1731321139666,44.52660375,214.7,214.62,7.60719625]
[1731321139862,44.52660375,214.7,214.62,7.70719625]
[1731321140070,44.52660375,214.7,214.64,0.1]
[1731321140265,44.52660375,214.72,214.65,7.60719625]
[1731321141071,44.52660375,214.72,214.63,44.52660375]
[1731321141572,44.52660375,214.7,214.63,44.52660375]
[1731321141778,44.52660375,214.68,214.61,23.45961878]
[1731321142073,44.52660375,214.66,214.58,0.1]
[1731321142269,44.52660375,214.66,214.59,51.72542253]
[1731321142475,44.52660375,214.66,214.59,7.09881878]
[1731321142666,44.52660375,214.66,214.57,44.52660375]
[1731321142871,44.52660375,214.66,214.58,0.1]
[1731321143056,44.52660375,214.66,214.58,7.19881878]
[1731321143580,44.52660375,214.62,214.55,0.1]
[1731321143752,44.52660375,214.62,214.55,51.72542253]
[1731321143957,44.52660375,214.62,214.55,44.62660375]
[1731321144157,4.6581,214.68,214.55,44.62660375]
[1731321144158,44.52660375,214.64,214.55,44.62660375]
[1731321144460,44.52660375,214.64,214.55,51.72542253]
[1731321144663,44.52660375,214.68,214.59,44.52660375]
[1731321144858,44.52660375,214.66,214.59,44.52660375]
[1731321145066,44.52660375,214.68,214.59,44.52660375]
[1731321145262,44.52660375,214.66,214.59,44.52660375]
[1731321146179,44.52660375,214.68,214.61,44.52660375]
[1731321146380,16.2957,214.78,214.63,44.52660375]
[1731321146381,44.52660375,214.7,214.63,44.52660375]
[1731321146570,44.52660375,214.7,214.64,7.09881878]
[1731321146762,44.52660375,214.72,214.65,44.52660375]
[1731321146966,44.52660375,214.72,214.66,7.09881878]
[1731321147161,44.52660375,214.74,214.66,7.09881878]
[1731321148078,44.52660375,214.7,214.63,44.52660375]
[1731321148580,44.52660375,214.7,214.64,7.09881878]
[1731321149365,44.52660375,214.66,214.61,6.83497221]
[1731321149570,44.52660375,214.66,214.59,44.52660375]
[1731321149771,44.52660375,214.67,214.6,44.52660375]
[1731321149961,11.6421,214.74,214.61,44.52660375]
[1731321149962,44.52660375,214.68,214.61,44.52660375]
[1731321150158,11.6421,214.74,214.56,6.83497221]
[1731321150357,20.0,214.77,214.56,6.83497221]
[1731321150570,6.189,214.75,214.56,6.83497221]
[1731321150971,15.3265,214.72,214.56,6.83497221]
[1731321151185,0.1,214.67,214.49,6.83497221]
[1731321151386,44.52660375,214.54,214.46,50.70320375]
[1731321151765,44.52660375,214.52,214.46,6.1766]
[1731321152170,0.1,214.63,214.46,6.1766]
[1731321152171,44.52660375,214.54,214.46,50.70320375]
[1731321152371,44.52660375,214.58,214.5,44.52660375]
[1731321152570,44.52660375,214.62,214.54,44.52660375]
[1731321152774,44.52660375,214.62,214.55,13.93379099]
[1731321152978,44.52660375,214.6,214.55,13.93379099]
[1731321153589,44.52660375,214.62,214.55,13.93379099]
[1731321154383,44.52660375,214.6,214.55,13.93379099]
[1731321154590,44.52660375,214.58,214.5,51.36157596]
[1731321154767,44.52660375,214.56,214.5,6.83497221]
[1731321154975,44.52660375,214.54,214.5,6.83497221]
[1731321155273,44.52660375,214.56,214.51,7.09881878]
[1731321155596,44.52660375,214.56,214.5,6.83497221]
[1731321155887,44.52660375,214.56,214.51,7.09881878]
[1731321156090,44.52660375,214.54,214.51,7.09881878]
[1731321156267,44.52660375,214.52,214.47,7.09881878]
[1731321156476,16.3063,214.64,214.5,7.09881878]
[1731321156477,44.52660375,214.56,214.5,7.09881878]
[1731321156675,4.6589,214.64,214.5,7.09881878]
[1731321156676,44.52660375,214.58,214.5,58.46039474]
[1731321156875,44.52660375,214.58,214.51,13.93379099]
[1731321158375,44.52660375,214.57,214.51,13.93379099]
[1731321159286,44.52660375,214.56,214.51,13.93379099]
[1731321159588,44.52660375,214.53,214.46,50.70320375]
[1731321159887,44.52660375,214.53,214.46,64.63699474]
[1731321160083,44.52660375,214.49,214.46,7.09881878]
[1731321160301,44.52660375,214.47,214.38,6.174]
[1731321160468,44.52660375,214.46,214.38,50.70060375]
[1731321160876,44.52660375,214.56,214.38,6.274]
[1731321161082,44.52660375,214.56,214.39,5.76824998]
[1731321161290,4.6609,214.55,214.39,5.76824998]
[1731321161470,44.52660375,214.47,214.39,50.29485373]
[1731321161675,4.6609,214.55,214.38,17.30992671]
[1731321161676,44.52660375,214.44,214.38,6.174]
[1731321161871,44.52660375,214.42,214.35,5.76824998]
[1731321162071,44.52660375,214.4,214.32,50.55320375]
[1731321162274,44.52660375,214.42,214.36,44.52660375]
[1731321162476,44.52660375,214.44,214.36,44.52660375]
[1731321162688,44.52660375,214.45,214.38,44.52660375]
[1731321163094,44.52660375,214.48,214.41,44.52660375]
[1731321163706,44.52660375,214.5,214.43,44.52660375]
[1731321164085,44.52660375,214.5,214.41,50.58175843]
[1731321164396,44.52660375,214.48,214.39,49.60737578]
[1731321164594,44.52660375,214.5,214.41,44.52660375]
[1731321164786,44.52660375,214.5,214.43,44.52660375]
[1731321164970,44.52660375,214.48,214.41,44.52660375]
[1731321165174,44.52660375,214.48,214.39,44.52660375]
[1731321165371,44.52660375,214.46,214.39,44.52660375]
[1731321165575,4.6616,214.52,214.37,44.52660375]
[1731321165576,44.52660375,214.44,214.37,44.52660375]
[1731321165980,44.52660375,214.46,214.36,0.1]
[1731321166297,44.52660375,214.52,214.43,44.52660375]
[1731321166497,44.52660375,214.54,214.45,44.52660375]
[1731321167303,44.52660375,214.54,214.47,44.52660375]
[1731321167595,44.52660375,214.56,214.47,44.52660375]
[1731321167785,44.52660375,214.56,214.49,44.52660375]
[1731321168096,44.52660375,214.55,214.5,6.05515468]
[1731321168297,4.84560044,214.64,214.54,44.52660375]
[1731321168473,44.52660375,214.71,214.63,44.52660375]
[1731321168677,44.52660375,214.71,214.64,12.16494355]
[1731321168892,44.52660375,214.69,214.61,44.52660375]
[1731321169381,44.52660375,214.71,214.63,44.52660375]
[1731321170501,44.52660375,214.69,214.61,44.52660375]
[1731321171597,44.52660375,214.71,214.63,44.52660375]
[1731321172676,44.52660375,214.73,214.65,44.52660375]
[1731321174786,44.52660375,214.75,214.67,44.52660375]
[1731321175290,44.52660375,214.77,214.69,44.52660375]
[1731321175501,44.52660375,214.75,214.67,44.52660375]
[1731321176408,5.1293194,214.79,214.7,44.52660375]
[1731321176409,44.52660375,214.78,214.7,44.52660375]
[1731321176785,0.4736194,214.79,214.73,44.52660375]
[1731321177001,44.52660375,214.78,214.7,44.52660375]
[1731321177185,44.52660375,214.76,214.68,44.52660375]
[1731321177784,44.52660375,214.77,214.69,44.52660375]
[1731321177986,44.52660375,214.76,214.69,44.52660375]
[1731321178485,44.52660375,214.77,214.69,44.52660375]
[1731321179205,44.52660375,214.76,214.68,44.52660375]
[1731321179392,44.52660375,214.75,214.68,44.52660375]
[1731321179589,44.52660375,214.76,214.68,44.52660375]
[1731321180120,44.52660375,214.75,214.67,44.52660375]
[1731321180289,44.52660375,214.76,214.69,44.52660375]
[1731321180486,44.52660375,214.75,214.68,44.52660375]
[1731321180680,0.4736194,214.79,214.7,44.52660375]
[1731321180681,44.52660375,214.77,214.7,44.52660375]
[1731321180892,27.71329134,214.79,214.72,27.23967194]
[1731321181098,27.23967194,214.78,214.71,27.23967194]
[1731321181302,27.23967194,214.77,214.7,27.23967194]
[1731321181503,27.23967194,214.77,214.69,27.23967194]
[1731321181694,27.23967194,214.78,214.7,27.23967194]
[1731321181898,27.23967194,214.75,214.68,27.23967194]
[1731321182104,27.23967194,214.72,214.64,27.23967194]
[1731321182309,27.23967194,214.69,214.62,27.23967194]
[1731321182513,27.23967194,214.67,214.6,33.34946081]
[1731321182691,0.4736194,214.79,214.66,6.0297]
[1731321182891,0.4736194,214.79,214.72,0.1]
[1731321183199,0.4736194,214.79,214.73,19.49954475]
[1731321183586,0.4736194,214.79,214.73,19.39954475]
[1731321183789,0.4736194,214.79,214.73,19.49954475]
[1731321184095,0.4736194,214.79,214.75,27.23967194]
[1731321184408,0.4736194,214.79,214.77,27.23967194]
[1731321184598,0.4736194,214.79,214.78,7.58519274]
[1731321187793,27.23967194,214.92,214.78,7.58519274]
[1731321187794,0.1,214.95,214.89,162.1263806]
[1731321187997,27.23967194,214.9,214.89,162.1263806]
[1731321188195,27.23967194,214.9,214.78,13.24374255]
[1731321188196,27.23967194,214.9,214.78,5.65854981]
[1731321188413,27.23967194,214.84,214.78,5.65854981]
[1731321188914,4.6525,214.94,214.78,32.89822175]
[1731321188915,27.23967194,214.86,214.78,32.89822175]
[1731321189409,27.23967194,214.9,214.82,27.23967194]
[1731321189711,27.23967194,214.9,214.8,27.23967194]
[1731321189901,27.23967194,214.88,214.79,13.24374255]
[1731321190307,27.23967194,214.86,214.79,13.24374255]
[1731321190498,27.23967194,214.84,214.74,27.23967194]
[1731321191306,27.23967194,214.82,214.74,27.23967194]
[1731321192009,27.23967194,214.88,214.78,27.23967194]
[1731321192210,27.23967194,214.88,214.78,40.48341449]
[1731321192410,27.23967194,214.88,214.78,34.82486468]
[1731321192713,27.23967194,214.88,214.8,27.23967194]
[1731321192891,27.23967194,214.9,214.8,34.82486468]
[1731321193096,9.59308876,214.95,214.8,27.23967194]
[1731321193097,27.23967194,214.88,214.8,27.23967194]
[1731321193395,27.23967194,214.86,214.76,27.23967194]
[1731321194200,27.23967194,214.84,214.76,27.23967194]
[1731321194909,27.23967194,214.88,214.78,27.23967194]
[1731321195111,28.04839979,214.99,214.87,27.23967194]
[1731321195413,27.23967194,214.91,214.86,6.58913554]
[1731321195623,27.23967194,214.91,214.82,27.23967194]
[1731321196486,27.23967194,214.89,214.82,27.23967194]
[1731321197613,27.23967194,214.89,214.8,27.23967194]
[1731321198496,4.6517,214.98,214.84,27.23967194]
[1731321198696,27.23967194,214.93,214.84,27.23967194]
[1731321199115,27.23967194,214.91,214.82,27.23967194]
[1731321199313,27.23967194,214.91,214.8,27.23967194]
[1731321199615,27.23967194,214.91,214.76,6.58913554]
[1731321199616,27.23967194,214.85,214.76,27.23967194]